[Event "Championnat du monde jeunes U12"]
[Date "2024.11.20"]
[White "Qu, Haoming"]
[Black "Aansh Nandan Nerurkar"]
[WhiteElo "1969"]
[BlackElo "2247"]
[Round "6.11"]
[Result "1/2-1/2"]
[TimeControl "5400+30"]

1. e4 {[%clk 1:30:53]} 1... c5 {[%clk 1:30:55]} 2. Nf3 {[%clk 1:31:10]} 2... d6
{[%clk 1:31:21]} 3. c3 {[%clk 1:31:27]} 3... Nf6 {[%clk 1:31:44]} 4. h3 {[%clk
1:31:51]} 4... Nc6 {[%clk 1:32:08]} 5. Bd3 {[%clk 1:31:57]} 5... e5 {[%clk
1:32:08]} 6. Bc2 {[%clk 1:32:11]} 6... d5 {[%clk 1:32:14]} 7. exd5 {[%clk
1:31:51]} 7... Qxd5 {[%clk 1:32:36]} 8. Qe2 {[%clk 1:31:19]} 8... Be7 {[%clk
1:32:01]} 9. d3 {[%clk 1:30:22]} 9... Bf5 {[%clk 1:28:30]} 10. Na3 {[%clk
1:24:12]} 10... O-O {[%clk 1:16:02]} 11. Nc4 {[%clk 1:10:23]} 11... e4 {[%clk
1:14:58]} 12. dxe4 {[%clk 1:07:53]} 12... Bxe4 {[%clk 1:15:26]} 13. Bxe4 {[%clk
1:07:53]} 13... Qxe4 {[%clk 1:15:55]} 14. Qxe4 {[%clk 1:07:05]} 14... Nxe4
{[%clk 1:16:23]} 15. a4 {[%clk 0:57:31]} 15... Rad8 {[%clk 1:14:27]} 16. O-O
{[%clk 0:50:25]} 16... Nd6 {[%clk 1:11:51]} 17. Nxd6 {[%clk 0:46:32]} 17... Bxd6
{[%clk 1:11:37]} 18. a5 {[%clk 0:44:46]} 18... f5 {[%clk 1:04:16]} 19. Bg5
{[%clk 0:42:37]} 19... Rd7 {[%clk 1:02:03]} 20. Rfd1 {[%clk 0:36:58]} 20... Rff7
{[%clk 1:01:50]} 21. g3 {[%clk 0:31:05]} 21... Bf8 {[%clk 0:49:56]} 22. Rxd7
{[%clk 0:21:57]} 22... Rxd7 {[%clk 0:50:24]} 23. Be3 {[%clk 0:22:14]} 23... g6
{[%clk 0:50:12]} 24. Kf1 {[%clk 0:20:59]} 24... Kf7 {[%clk 0:50:19]} 25. Nd2
{[%clk 0:20:42]} 25... Rd5 {[%clk 0:48:21]} 26. Nc4 {[%clk 0:19:54]} 26... Ne5
{[%clk 0:47:41]} 27. Nxe5+ {[%clk 0:12:19]} 27... Rxe5 {[%clk 0:48:10]} 28. a6
{[%clk 0:12:43]} 28... b6 {[%clk 0:47:12]} 29. Rd1 {[%clk 0:09:36]} 29... Ke8
{[%clk 0:46:25]} 30. c4 {[%clk 0:09:31]} 30... Re4 {[%clk 0:45:29]} 31. b3
{[%clk 0:09:37]} 31... Re7 {[%clk 0:38:17]} 32. Bf4 {[%clk 0:05:31]} 32... Rf7
{[%clk 0:38:28]} 33. Ke2 {[%clk 0:03:45]} 33... Bg7 {[%clk 0:38:40]} 34. Rd6
{[%clk 0:03:21]} 34... Re7+ {[%clk 0:37:20]} 35. Kf3 {[%clk 0:03:14]} 35... Bd4
{[%clk 0:32:51]} 36. Rc6 {[%clk 0:02:27]} 36... Rd7 {[%clk 0:31:53]} 37. Rc8+
{[%clk 0:02:14]} 37... Rd8 {[%clk 0:31:54]} 38. Rc7 {[%clk 0:02:08]} 38... Rd7
{[%clk 0:32:18]} 39. Rb7 {[%clk 0:02:13]} 39... Kd8 {[%clk 0:32:31]} 40. Rb8+
{[%clk 0:00:52]} 40... Ke7 {[%clk 0:32:56]} 41. Ra8 {[%clk 0:00:52]} 41... Ke6
{[%clk 0:32:53]} 42. Re8+ {[%clk 0:00:47]} 42... Kf7 {[%clk 0:33:11]} 43. Rb8
{[%clk 0:01:06]} 43... Ke7 {[%clk 0:33:28]} 44. Rb7 {[%clk 0:01:08]} 44... Kd8
{[%clk 0:33:52]} 45. Rb8+ {[%clk 0:01:01]} 45... Ke7 {[%clk 0:34:21]} 46. g4
{[%clk 0:01:04]} 46... fxg4+ {[%clk 0:33:15]} 47. hxg4 {[%clk 0:01:29]} 47... h5
{[%clk 0:32:47]} 48. gxh5 {[%clk 0:01:24]} 48... gxh5 {[%clk 0:33:15]} 49. Ke4
{[%clk 0:01:30]} 49... Bxf2 {[%clk 0:31:02]} 50. Kf5 {[%clk 0:01:49]} 50... h4
{[%clk 0:27:25]} 51. Bg5+ {[%clk 0:02:02]} 51... Kd6 {[%clk 0:27:49]} 52. Bf4+
{[%clk 0:01:57]} 52... Ke7 {[%clk 0:28:18]} 53. Bg5+ {[%clk 0:01:48]} 53... Kd6
{[%clk 0:27:50]} 54. Bf4+ {[%clk 0:01:53]} 54... Ke7 {[%clk 0:28:05]} 55. Rh8
{[%clk 0:01:30]} 55... Bg3 {[%clk 0:27:15]} 56. Rh7+ {[%clk 0:01:20]} 56... Kd8
{[%clk 0:26:56]} 57. Rh8+ {[%clk 0:01:48]} 57... Ke7 {[%clk 0:27:12]} 58. Rh7+
{[%clk 0:02:04]} 58... Ke8 {[%clk 0:27:30]} 59. Rh8+ {[%clk 0:02:22]} 59... Ke7
{[%clk 0:27:15]} 60. Rh7+ {[%clk 0:02:40]} 60... Kd8 {[%clk 0:27:38]} 61. Rh8+
{[%clk 0:02:51]} 61... Ke7 {[%clk 0:27:56]} 62. Rh7+ {[%clk 0:03:14]} 62... Ke8
{[%clk 0:28:22]} 63. Rh8+ {[%clk 0:03:37]} 63... Kf7 {[%clk 0:28:46]} 64. Rh7+
{[%clk 0:04:03]} 64... Ke8 {[%clk 0:29:09]} 65. Rh8+ {[%clk 0:04:19]} 65... Ke7
{[%clk 0:28:59]} 66. Rh7+ {[%clk 0:04:23]} 66... Kd8 {[%clk 0:29:22]} 67. Ke4
1/2-1/2

[Variant "Standard"]
[Site "Europe Echecs"]

[Event "Championnat du monde jeunes U12"]
[Date "2024.11.20"]
[White "Torres Rebolledo, Alvaro"]
[Black "Batbaatar, Baatar"]
[WhiteElo "2216"]
[BlackElo "2030"]
[Round "6.12"]
[Result "1-0"]
[TimeControl "5400+30"]

1. e4 {[%clk 1:30:11]} 1... c5 {[%clk 1:30:44]} 2. Nf3 {[%clk 1:30:34]} 2... d6
{[%clk 1:31:08]} 3. d4 {[%clk 1:30:53]} 3... cxd4 {[%clk 1:31:27]} 4. Nxd4
{[%clk 1:31:17]} 4... Nf6 5. Nc3 {[%clk 1:31:34]} 5... a6 {[%clk 1:32:03]} 6.
Be3 {[%clk 1:31:54]} 6... e5 {[%clk 1:32:15]} 7. Nb3 {[%clk 1:32:16]} 7... Be6
{[%clk 1:32:36]} 8. Qd2 {[%clk 1:32:32]} 8... Nbd7 {[%clk 1:32:04]} 9. O-O-O
{[%clk 1:32:34]} 9... Rc8 {[%clk 1:29:50]} 10. Kb1 {[%clk 1:28:09]} 10... b5
{[%clk 1:17:29]} 11. h3 {[%clk 1:10:09]} 11... Be7 {[%clk 1:12:07]} 12. g4
{[%clk 1:07:33]} 12... Nb6 {[%clk 1:07:56]} 13. g5 {[%clk 0:55:07]} 13... Nfd7
{[%clk 1:08:15]} 14. f4 {[%clk 0:54:30]} 14... exf4 {[%clk 1:04:24]} 15. Bxf4
{[%clk 0:54:43]} 15... Ne5 {[%clk 1:04:48]} 16. Bxe5 {[%clk 0:46:39]} 16... dxe5
{[%clk 1:05:11]} 17. Qf2 {[%clk 0:46:43]} 17... Qc7 {[%clk 1:02:50]} 18. h4
{[%clk 0:44:25]} 18... Na4 {[%clk 0:53:59]} 19. Nd5 {[%clk 0:30:31]} 19... Bxd5
{[%clk 0:52:09]} 20. Rxd5 {[%clk 0:30:55]} 20... O-O {[%clk 0:51:12]} 21. Bh3
{[%clk 0:30:09]} 21... Rcd8 {[%clk 0:49:48]} 22. Rhd1 {[%clk 0:29:07]} 22... Nb6
{[%clk 0:47:35]} 23. R5d3 {[%clk 0:24:20]} 23... a5 {[%clk 0:43:35]} 24. Nxa5
{[%clk 0:18:35]} 24... Ra8 {[%clk 0:43:44]} 25. Nb3 {[%clk 0:18:37]} 25... Qa7
{[%clk 0:40:40]} 26. Nc1 {[%clk 0:18:53]} 26... b4 {[%clk 0:40:50]} 27. Qg3
{[%clk 0:15:35]} 27... Qa5 {[%clk 0:39:19]} 28. h5 {[%clk 0:14:37]} 28... g6
{[%clk 0:25:00]} 29. hxg6 {[%clk 0:14:57]} 29... hxg6 {[%clk 0:24:55]} 30. Qh4
{[%clk 0:14:50]} 30... b3 {[%clk 0:23:43]} 31. cxb3 {[%clk 0:13:31]} 31... Rfd8
{[%clk 0:23:28]} 32. Bg4 {[%clk 0:13:06]} 32... Rxd3 {[%clk 0:23:10]} 33. Rh1
{[%clk 0:12:20]} 1-0

[Variant "Standard"]
[Site "Europe Echecs"]

[Event "Championnat du monde jeunes U12"]
[Date "2024.11.20"]
[White "Kuandykuly, Danis"]
[Black "Wijerathna, Vinuka Dihain"]
[WhiteElo "2199"]
[BlackElo "2004"]
[Round "6.13"]
[Result "0-1"]
[TimeControl "5400+30"]

1. e4 {[%clk 1:27:24]} 1... e5 {[%clk 1:30:53]} 2. Nc3 {[%clk 1:27:43]} 2... Nf6
{[%clk 1:31:10]} 3. g3 {[%clk 1:28:02]} 3... Nc6 {[%clk 1:26:18]} 4. Bg2 {[%clk
1:26:53]} 4... Bc5 {[%clk 1:26:23]} 5. Nge2 {[%clk 1:27:10]} 5... a6 {[%clk
1:25:46]} 6. d3 {[%clk 1:26:32]} 6... d6 {[%clk 1:26:12]} 7. h3 {[%clk 1:26:52]}
7... Be6 {[%clk 1:20:51]} 8. O-O {[%clk 1:27:12]} 8... d5 {[%clk 1:16:57]} 9.
Bg5 {[%clk 1:20:08]} 9... dxe4 {[%clk 1:15:44]} 10. Nxe4 {[%clk 1:08:44]} 10...
Be7 {[%clk 1:12:02]} 11. Nxf6+ {[%clk 1:06:21]} 11... gxf6 {[%clk 1:11:32]} 12.
Be3 {[%clk 1:06:03]} 12... Qd7 {[%clk 1:11:46]} 13. Kh2 {[%clk 1:05:35]} 13...
O-O-O {[%clk 1:11:35]} 14. h4 {[%clk 0:59:30]} 14... Rhg8 {[%clk 1:09:22]} 15.
Qe1 {[%clk 0:55:38]} 15... f5 {[%clk 0:52:11]} 16. f4 {[%clk 0:52:52]} 16... f6
{[%clk 0:44:36]} 17. Rd1 {[%clk 0:49:23]} 17... Nb4 {[%clk 0:37:48]} 18. Qd2
{[%clk 0:41:49]} 18... Bd5 {[%clk 0:35:10]} 19. Bh3 {[%clk 0:40:29]} 19... Be6
{[%clk 0:35:10]} 20. Bg1 {[%clk 0:30:40]} 20... c5 {[%clk 0:26:56]} 21. Nc3
{[%clk 0:23:53]} 21... Kb8 {[%clk 0:24:32]} 22. b3 {[%clk 0:20:55]} 22... Bd6
{[%clk 0:22:45]} 23. Na4 {[%clk 0:19:14]} 23... Qg7 {[%clk 0:19:51]} 24. Qg2
{[%clk 0:07:26]} 24... Bd5 {[%clk 0:19:04]} 25. Qf2 {[%clk 0:07:39]} 25... exf4
{[%clk 0:15:48]} 26. gxf4 {[%clk 0:08:02]} 26... Nxc2 {[%clk 0:15:04]} 27. Nc3
{[%clk 0:05:48]} 27... Bc6 {[%clk 0:14:39]} 28. Ne2 {[%clk 0:05:48]} 28... Rde8
{[%clk 0:14:29]} 29. Rd2 {[%clk 0:05:21]} 29... Ne3 {[%clk 0:14:36]} 30. Qxe3
{[%clk 0:05:33]} 30... Rxe3 {[%clk 0:14:53]} 31. Bxe3 {[%clk 0:06:01]} 31... Re8
{[%clk 0:13:37]} 32. Bg1 {[%clk 0:06:10]} 32... Qh6 {[%clk 0:12:46]} 33. Bf2
{[%clk 0:05:42]} 33... Rxe2 {[%clk 0:11:55]} 34. Rxe2 {[%clk 0:06:04]} 34...
Qxf4+ {[%clk 0:12:19]} 0-1

[Variant "Standard"]
[Site "Europe Echecs"]

[Event "Championnat du monde jeunes U12"]
[Date "2024.11.20"]
[White "Liu, Patrick"]
[Black "Bocquenet-Drouode, Hugo"]
[WhiteElo "2192"]
[BlackElo "2002"]
[Round "6.14"]
[Result "1-0"]
[TimeControl "5400+30"]

1. e4 {[%clk 1:30:59]} 1... c5 {[%clk 1:30:54]} 2. Nf3 {[%clk 1:31:28]} 2... Nc6
{[%clk 1:31:18]} 3. d4 {[%clk 1:31:56]} 3... cxd4 {[%clk 1:31:43]} 4. Nxd4
{[%clk 1:32:24]} 4... Nf6 {[%clk 1:32:05]} 5. Nc3 {[%clk 1:32:52]} 5... d6
{[%clk 1:32:28]} 6. Bg5 {[%clk 1:33:16]} 6... e6 {[%clk 1:32:52]} 7. Qd2 {[%clk
1:33:42]} 7... a6 {[%clk 1:32:53]} 8. O-O-O {[%clk 1:33:44]} 8... Bd7 {[%clk
1:32:23]} 9. Kb1 {[%clk 1:33:21]} 9... Be7 {[%clk 1:31:52]} 10. f3 {[%clk
1:33:26]} 10... Nxd4 {[%clk 1:29:29]} 11. Qxd4 {[%clk 1:33:54]} 11... b5 {[%clk
1:26:29]} 12. h4 {[%clk 1:33:36]} 12... h6 {[%clk 1:24:44]} 13. Be3 {[%clk
1:33:28]} 13... h5 {[%clk 1:24:02]} 14. Bg5 {[%clk 1:32:20]} 14... O-O {[%clk
1:21:07]} 15. Qd2 {[%clk 1:28:18]} 15... b4 {[%clk 1:18:04]} 16. Ne2 {[%clk
1:27:58]} 16... Qb8 {[%clk 1:02:18]} 17. Nf4 {[%clk 1:23:12]} 17... g6 {[%clk
1:00:27]} 18. Bd3 {[%clk 1:18:27]} 18... e5 {[%clk 0:56:43]} 19. Nd5 {[%clk
1:15:50]} 19... Nxd5 {[%clk 0:56:58]} 20. exd5 {[%clk 1:16:18]} 20... Bxg5
{[%clk 0:53:39]} 21. hxg5 {[%clk 1:15:58]} 21... Kg7 {[%clk 0:51:04]} 22. g4
{[%clk 1:15:47]} 22... hxg4 {[%clk 0:50:26]} 23. Rh7+ {[%clk 1:15:40]} 23...
Kxh7 {[%clk 0:44:23]} 24. Qh2+ {[%clk 1:15:58]} 24... Kg7 {[%clk 0:44:33]} 25.
Qh6+ {[%clk 1:16:22]} 25... Kg8 {[%clk 0:44:59]} 26. Bxg6 {[%clk 1:16:23]} 26...
fxg6 {[%clk 0:42:33]} 27. Qxg6+ {[%clk 1:16:45]} 27... Kh8 {[%clk 0:42:58]} 28.
Rh1# {[%clk 1:17:11]} 1-0

[Variant "Standard"]
[Site "Europe Echecs"]

[Event "Championnat du monde jeunes U12"]
[Date "2024.11.20"]
[White "Ambartsumian, Tyhran"]
[Black "Antipov, Fedor"]
[WhiteElo "2123"]
[BlackElo "1991"]
[Round "6.15"]
[Result "1-0"]
[TimeControl "5400+30"]

1. e4 {[%clk 1:30:15]} 1... c5 {[%clk 1:30:54]} 2. Nf3 {[%clk 1:30:41]} 2... e6
{[%clk 1:31:19]} 3. b3 {[%clk 1:31:04]} 3... d5 {[%clk 1:31:17]} 4. Bb5+ {[%clk
1:31:09]} 4... Bd7 {[%clk 1:31:23]} 5. Bxd7+ {[%clk 1:31:33]} 5... Qxd7 {[%clk
1:31:39]} 6. exd5 {[%clk 1:31:57]} 6... Qxd5 {[%clk 1:31:38]} 7. Nc3 {[%clk
1:32:21]} 7... Qd7 {[%clk 1:30:58]} 8. Ne5 {[%clk 1:32:43]} 8... Qc7 {[%clk
1:27:59]} 9. f4 {[%clk 1:32:36]} 9... Nc6 {[%clk 1:25:55]} 10. Qe2 {[%clk
1:33:01]} 10... a6 {[%clk 1:23:17]} 11. Nxc6 {[%clk 1:32:59]} 11... Qxc6 {[%clk
1:23:38]} 12. Bb2 {[%clk 1:33:25]} 12... Nh6 {[%clk 1:21:30]} 13. O-O-O {[%clk
1:33:37]} 13... Nf5 {[%clk 1:19:48]} 14. Rhe1 {[%clk 1:34:01]} 14... O-O-O
{[%clk 1:13:20]} 15. Ne4 {[%clk 1:18:05]} 15... h5 {[%clk 1:01:20]} 16. Ng5
{[%clk 1:04:58]} 16... Rd7 {[%clk 0:53:53]} 17. g3 {[%clk 0:57:38]} 17... Bd6
{[%clk 0:50:45]} 18. Kb1 {[%clk 0:56:28]} 18... Bc7 {[%clk 0:46:48]} 19. d3
{[%clk 0:48:54]} 19... b5 {[%clk 0:36:26]} 20. Qe4 {[%clk 0:41:01]} 20... Kb7
{[%clk 0:32:08]} 21. Ba3 {[%clk 0:40:13]} 21... Bd6 {[%clk 0:24:34]} 22. Qe2
{[%clk 0:39:23]} 22... g6 {[%clk 0:21:21]} 23. Ne4 {[%clk 0:39:35]} 23... Be7
{[%clk 0:18:28]} 24. Qf2 {[%clk 0:39:43]} 24... Rc8 {[%clk 0:18:31]} 25. h3
{[%clk 0:39:36]} 25... Rdc7 {[%clk 0:15:33]} 26. g4 {[%clk 0:21:10]} 26... hxg4
{[%clk 0:13:49]} 27. hxg4 {[%clk 0:21:36]} 27... Bh4 {[%clk 0:14:03]} 28. Qf3
{[%clk 0:18:21]} 28... Bxe1 {[%clk 0:09:44]} 29. Rxe1 {[%clk 0:17:10]} 29... Ne7
{[%clk 0:05:13]} 30. Nd6+ {[%clk 0:17:26]} 30... Kb8 {[%clk 0:05:08]} 31. Qxc6
{[%clk 0:17:49]} 31... Rxc6 {[%clk 0:05:23]} 32. Nxc8 {[%clk 0:18:09]} 32...
Rxc8 {[%clk 0:04:08]} 33. c4 {[%clk 0:18:20]} 33... b4 {[%clk 0:03:55]} 34. Bb2
{[%clk 0:18:41]} 34... Rd8 {[%clk 0:02:45]} 35. Kc2 {[%clk 0:18:42]} 35... Nc6
{[%clk 0:02:57]} 36. Rh1 {[%clk 0:19:02]} 36... Kc7 {[%clk 0:02:56]} 37. Bf6
{[%clk 0:16:46]} 37... Rd7 {[%clk 0:02:57]} 38. Rh8 {[%clk 0:15:45]} 38... Kb7
{[%clk 0:02:47]} 39. Kd2 {[%clk 0:15:41]} 39... Kc7 {[%clk 0:02:56]} 40. Ke3
{[%clk 0:15:10]} 40... Kb7 {[%clk 0:03:12]} 41. Rf8 {[%clk 0:14:30]} 41... Kc7
{[%clk 0:03:20]} 42. Ke4 {[%clk 0:14:49]} 42... Kb7 {[%clk 0:03:23]} 43. Re8
{[%clk 0:11:33]} 43... Kc7 {[%clk 0:03:42]} 44. g5 {[%clk 0:11:40]} 44... Kb7
{[%clk 0:03:35]} 45. Be5 {[%clk 0:08:56]} 45... Kb6 {[%clk 0:03:12]} 46. Rf8
{[%clk 0:08:38]} 46... Kb7 {[%clk 0:03:29]} 47. Bb2 {[%clk 0:08:31]} 47... Kb6
{[%clk 0:03:38]} 48. Rh8 {[%clk 0:06:07]} 48... Kb7 {[%clk 0:03:51]} 49. Rh3
{[%clk 0:05:20]} 49... Kb6 {[%clk 0:03:55]} 50. Rh2 {[%clk 0:05:21]} 50... Rd8
{[%clk 0:04:01]} 51. Bf6 {[%clk 0:05:34]} 51... Rd7 {[%clk 0:04:19]} 52. Rd2
{[%clk 0:05:17]} 52... Nd4 {[%clk 0:04:12]} 53. Be5 {[%clk 0:04:02]} 53... Rd8
{[%clk 0:03:44]} 54. Rh2 {[%clk 0:03:59]} 54... Nc6 {[%clk 0:03:53]} 55. Rh3
{[%clk 0:04:13]} 55... Rd7 {[%clk 0:04:04]} 56. Bf6 {[%clk 0:04:10]} 56... Rd6
{[%clk 0:03:48]} 57. Bh8 {[%clk 0:03:52]} 57... Rd8 {[%clk 0:03:54]} 58. Bg7
{[%clk 0:04:19]} 58... Rd7 {[%clk 0:04:06]} 59. Rh2 {[%clk 0:03:36]} 59... Rd8
{[%clk 0:04:02]} 60. Bf6 {[%clk 0:03:02]} 60... Rd7 {[%clk 0:04:21]} 61. Rh8
{[%clk 0:03:07]} 61... Kb7 {[%clk 0:04:27]} 62. Rf8 {[%clk 0:03:00]} 62... Kb6
{[%clk 0:04:43]} 63. Be5 {[%clk 0:03:17]} 63... Kb7 {[%clk 0:04:57]} 64. Bf6
{[%clk 0:02:53]} 64... Kb6 {[%clk 0:05:21]} 65. Bb2 {[%clk 0:03:18]} 65... Kb7
{[%clk 0:05:34]} 66. Bc1 {[%clk 0:03:32]} 66... Rd4+ {[%clk 0:05:45]} 67. Kf3
{[%clk 0:03:06]} 67... Rd7 {[%clk 0:02:52]} 68. Be3 {[%clk 0:03:31]} 68... Kb6
{[%clk 0:03:14]} 69. Ke4 {[%clk 0:03:57]} 69... a5 {[%clk 0:03:23]} 70. Bf2
{[%clk 0:04:01]} 70... a4 {[%clk 0:02:02]} 71. bxa4 {[%clk 0:03:49]} 71... Ra7
{[%clk 0:02:21]} 72. d4 {[%clk 0:04:10]} 72... Rxa4 {[%clk 0:00:58]} 73. dxc5+
{[%clk 0:04:22]} 73... Kc7 {[%clk 0:01:10]} 74. Rxf7+ {[%clk 0:04:49]} 74... Kd8
{[%clk 0:01:04]} 75. Be1 {[%clk 0:01:52]} 75... Rxa2 {[%clk 0:01:12]} 76. Bxb4
{[%clk 0:02:13]} 76... Nxb4 {[%clk 0:01:34]} 77. Ke5 {[%clk 0:02:41]} 77... Ra5
{[%clk 0:01:04]} 78. Rb7 {[%clk 0:01:50]} 78... Rxc5+ {[%clk 0:00:33]} 79. Kd4
{[%clk 0:02:14]} 79... Rf5 {[%clk 0:00:32]} 80. Rxb4 {[%clk 0:02:42]} 80...
Rxf4+ {[%clk 0:00:52]} 81. Ke5 {[%clk 0:03:09]} 81... Rf5+ {[%clk 0:01:09]} 82.
Kd6 {[%clk 0:03:34]} 82... Kc8 {[%clk 0:00:58]} 83. Rb5 {[%clk 0:03:56]} 83...
Rf4 {[%clk 0:00:39]} 84. Rc5+ {[%clk 0:04:06]} 84... Kb7 {[%clk 0:00:36]} 85.
Rc7+ {[%clk 0:03:37]} 85... Kb8 {[%clk 0:00:55]} 86. Rg7 {[%clk 0:03:53]} 86...
Rxc4 {[%clk 0:01:09]} 87. Kxe6 {[%clk 0:04:19]} 87... Rc6+ {[%clk 0:00:36]} 88.
Kf7 {[%clk 0:04:44]} 88... Kc8 {[%clk 0:00:35]} 89. Rxg6 {[%clk 0:05:10]} 89...
Rc5 {[%clk 0:00:32]} 90. Rg8+ {[%clk 0:05:00]} 90... Kd7 {[%clk 0:00:54]} 91. g6
{[%clk 0:05:25]} 91... Rf5+ {[%clk 0:01:03]} 92. Kg7 {[%clk 0:05:50]} 92... Ke7
{[%clk 0:01:12]} 93. Ra8 {[%clk 0:06:15]} 93... Rf1 {[%clk 0:01:23]} 94. Ra7+
{[%clk 0:06:41]} 94... Ke8 {[%clk 0:01:23]} 95. Kg8 {[%clk 0:07:06]} 95... Rf8+
{[%clk 0:01:33]} 96. Kh7 Rf1 {[%clk 0:01:59]} 97. g7 {[%clk 0:07:55]} 97... Rh1+
{[%clk 0:02:21]} 98. Kg8 {[%clk 0:08:22]} 98... Rh4 {[%clk 0:01:41]} 99. Ra2
{[%clk 0:08:47]} 99... Rh1 {[%clk 0:01:31]} 100. Re2+ {[%clk 0:09:13]} 100...
Kd7 {[%clk 0:01:55]} 101. Re4 {[%clk 0:09:39]} 101... Rh2 {[%clk 0:01:56]} 102.
Kf7 {[%clk 0:10:01]} 102... Rf2+ {[%clk 0:02:21]} 103. Kg6 {[%clk 0:10:27]}
103... Rg2+ {[%clk 0:02:45]} 104. Kf6 {[%clk 0:10:53]} 104... Kd6 {[%clk
0:03:05]} 105. Rd4+ {[%clk 0:11:14]} 105... Kc6 {[%clk 0:03:15]} 106. Rd8 {[%clk
0:11:33]} 106... Rf2+ {[%clk 0:03:36]} 107. Ke5 {[%clk 0:11:59]} 107... Re2+
{[%clk 0:04:01]} 108. Kf4 {[%clk 0:12:26]} 108... Rf2+ {[%clk 0:04:25]} 109. Ke3
{[%clk 0:12:53]} 109... Rg2 {[%clk 0:04:50]} 110. g8=Q {[%clk 0:13:18]} 1-0

[Variant "Standard"]
[Site "Europe Echecs"]

[Event "Championnat du monde jeunes U12"]
[Date "2024.11.20"]
[White "Filindash, Nikita"]
[Black "Kleschevnikov, Arseny"]
[WhiteElo "2076"]
[BlackElo "1893"]
[Round "6.16"]
[Result "1/2-1/2"]
[TimeControl "5400+30"]

1. d4 {[%clk 1:30:59]} 1... d5 {[%clk 1:30:54]} 2. c4 {[%clk 1:31:21]} 2... e6
{[%clk 1:31:21]} 3. Nc3 {[%clk 1:31:46]} 3... c6 {[%clk 1:31:47]} 4. cxd5 {[%clk
1:32:12]} 4... exd5 {[%clk 1:32:12]} 5. Qc2 {[%clk 1:32:37]} 5... Bd6 {[%clk
1:24:22]} 6. Nf3 {[%clk 1:32:57]} 6... Ne7 {[%clk 1:20:31]} 7. Bg5 {[%clk
1:33:11]} 7... h6 {[%clk 1:14:26]} 8. Bh4 {[%clk 1:20:22]} 8... Bf5 {[%clk
1:11:33]} 9. Qxf5 {[%clk 1:20:38]} 9... Nxf5 {[%clk 1:12:00]} 10. Bxd8 {[%clk
1:21:07]} 10... Kxd8 {[%clk 1:12:29]} 11. e3 {[%clk 1:21:35]} 11... Nd7 {[%clk
1:07:04]} 12. Bd3 {[%clk 1:19:58]} 12... Ne7 {[%clk 1:06:31]} 13. Ke2 {[%clk
1:12:36]} 13... Re8 {[%clk 0:59:09]} 14. Rhc1 {[%clk 1:11:11]} 14... f5 {[%clk
0:47:32]} 15. g3 {[%clk 1:05:53]} 15... g5 {[%clk 0:39:45]} 16. Rab1 {[%clk
0:43:25]} 16... a5 {[%clk 0:32:19]} 17. Na4 {[%clk 0:28:40]} 17... Kc7 {[%clk
0:16:00]} 18. a3 {[%clk 0:19:29]} 18... Rf8 {[%clk 0:12:21]} 19. h4 {[%clk
0:10:10]} 19... g4 {[%clk 0:11:20]} 20. Nd2 {[%clk 0:10:24]} 20... Nf6 {[%clk
0:10:58]} 21. Nb3 {[%clk 0:05:40]} 21... Ne4 {[%clk 0:10:28]} 22. Rc2 {[%clk
0:05:28]} 22... Rf6 {[%clk 0:07:08]} 23. Rbc1 {[%clk 0:05:43]} 23... Ra7 {[%clk
0:06:41]} 24. Nc3 {[%clk 0:01:04]} 24... Kd8 {[%clk 0:06:00]} 25. Bxe4 {[%clk
0:00:38]} 25... fxe4 {[%clk 0:06:19]} 26. Na4 {[%clk 0:00:40]} 26... h5 {[%clk
0:04:43]} 27. Rc3 {[%clk 0:00:33]} 27... Kc7 {[%clk 0:04:12]} 28. R3c2 {[%clk
0:00:50]} 28... Ra8 {[%clk 0:03:39]} 29. Rf1 {[%clk 0:00:36]} 29... Raf8 {[%clk
0:03:23]} 30. Rcc1 {[%clk 0:01:06]} 30... Nf5 {[%clk 0:02:35]} 31. Rg1 {[%clk
0:00:43]} 31... Ne7 {[%clk 0:02:28]} 32. Rgf1 {[%clk 0:01:08]} 32... Nf5 {[%clk
0:02:40]} 33. Rg1 {[%clk 0:01:37]} 33... Ne7 {[%clk 0:02:25]} 34. Rgf1 {[%clk
0:02:02]} 34... b6 {[%clk 0:02:07]} 35. Nd2 {[%clk 0:00:52]} 35... Kb7 {[%clk
0:02:04]} 36. Nb3 {[%clk 0:01:06]} 36... Nf5 {[%clk 0:02:15]} 37. Rg1 {[%clk
0:01:23]} 37... Bc7 {[%clk 0:02:04]} 38. Nd2 {[%clk 0:01:28]} 38... R6f7 {[%clk
0:02:04]} 39. Nb3 {[%clk 0:00:50]} 39... Nd6 {[%clk 0:01:44]} 40. Rgf1 {[%clk
0:00:35]} 40... Nf5 {[%clk 0:01:42]} 41. Rg1 {[%clk 0:01:00]} 41... Nd6 {[%clk
0:01:44]} 42. Rgf1 {[%clk 0:01:23]} 42... Nf5 {[%clk 0:01:38]} 43. Rg1 {[%clk
0:01:46]} 43... Bd6 {[%clk 0:01:30]} 44. Nd2 {[%clk 0:01:56]} 1/2-1/2

[Variant "Standard"]
[Site "Europe Echecs"]